{"text_format":"1","workbook":"xlsx","n_sheets":4,"sheets":["walking dinner","matrixen","Algemene verkoopsvoorwaarden","Reservatievoorstel"],"not_rendered":{"charts":0,"images":0,"macros":1,"external_links":0,"defined_names":2,"comments":0,"pivot_tables":0},"unopened":[],"bounds":{"document_bytes":16777216,"sheet_cells":100000,"rows_first":2000,"rows_last":500,"rows_between":2000,"halvings":0,"cell_chars":16384,"cell_head_chars":4096},"cells_cut":0,"cells_raw":0,"read":"whole","date_system":"1900"}

{"sheet":"walking dinner","index":0,"n_rows":143,"n_cols":33,"rows_kept":143,"cut":false,"hidden":false,"merged":[[99,10,99,14],[101,10,101,14],[100,10,100,14],[102,10,102,17]]}
[null,"Deze info is van: Feestzaal Katelijnenhof, Heirweg 172, 8800 Roeselare. Contacteer de zaakvoerder: 0475/618058 - info@katelijnenhof.be - web: www.katelijnenhof.be met foto's en volledige prijslijst."]
[]
[null,{"$f":"\"Rekenmodule walking dinner. De prijzen van de recepties in deze module gelden voor alle personen waarvan de receptie gevolgd wordt door een maaltijd. Geldig  tot \" & DAY(matrixen!B1) & \" - \" & MONTH(matrixen!B1) & \" - \" & YEAR(matrixen!B1)","v":"Rekenmodule walking dinner. De prijzen van de recepties in deze module gelden voor alle personen waarvan de receptie gevolgd wordt door een maaltijd. Geldig  tot 23 - 2 - 2018"}]
[]
[null,"4 Buffetten / Dranken gedurende 5 uur inbegrepen.",null,null,null,"kinderen",null,"kinderen",null,"kinderen"]
[null,null,null,{"$f":"IF(TODAY()>AA11,\"Deze module is niet meer geldig.\",\"\")","v":""},null," 0 t.e.m. 2 j. 11 maand",null,"3 j. t.e.m. 5 j. 11 maand",null,"6 j, t.e.m. 11 jr. 11 maand"]
[null,"Totaal per volwassene:",null,{"$f":"IF(TODAY()>AA11,1/0,SUM(D10:D1010))","v":47.8},null,"0,00",null,{"$f":"D7/3","v":15.933333333333332},null,{"$f":"D7/2","v":23.9}]
[null,null,null,null,null,"U kan ook voor de kinderen een kindermenu nemen ( zie een andere rekenmodule)"]
[]
[null,"MAAK STEEDS UW KEUZE in de gele vakken: (scroll naar beneden om meer gegevens in te vullen) Hierboven kunt u uw prijs volgen.",null,null,null,null,null,null,"U vindt verder een overzicht van uw selectie"]
[null,"(klik op de gele balk, vervolgens op het pijltje rechts en scroll ev. naar beneden)",null,"prijs pp",null,"Beknopte info",null,"Gedetailleerde info",null,null,null,null,null,null,null,null,null,null,null,null,null,null,null,null,null,null,{"$f":"matrixen!B1","v":"2018-02-23"}]
[]
[null,null,null,null,null,{"$f":"HLOOKUP($B$16,matrixen!$K$14:$S$18,2,FALSE)","v":0},null,{"$f":"HLOOKUP($B$16,matrixen!$T$14:$AB$28,2,FALSE)","v":0}]
[null,null,null,null,null,{"$f":"HLOOKUP($B$16,matrixen!$K$14:$S$18,3,FALSE)","v":0},null,{"$f":"HLOOKUP($B$16,matrixen!$T$14:$AB$28,3,FALSE)","v":0},null,null,null,null,null,null,null,null,null,null,null,null,null,null,null,null,null,null,{"$f":"matrixen!B11","v":"Maak in dit vak uw keuze voor het aperitief"}]
[null,null,null,null,null,{"$f":"HLOOKUP($B$16,matrixen!$K$14:$S$18,4,FALSE)","v":0},null,{"$f":"HLOOKUP($B$16,matrixen!$T$14:$AB$28,4,FALSE)","v":0},null,null,null,null,null,null,null,null,null,null,null,null,null,null,null,null,null,null,{"$f":"matrixen!B14","v":"Receptie F"}]
[null,"Maak in dit vak uw keuze voor het aperitief",null,{"$f":"IF(B16=matrixen!B11,0,VLOOKUP(B16,matrixen!B12:I19,8,FALSE)-matrixen!I19)","v":0},null,{"$f":"HLOOKUP($B$16,matrixen!$K$14:$S$19,5,FALSE)","v":0},null,{"$f":"HLOOKUP($B$16,matrixen!$T$14:$AB$28,5,FALSE)","v":0},null,null,null,null,null,null,null,null,null,null,null,null,null,null,null,null,null,null,{"$f":"matrixen!B15","v":"Receptie E"}]
[null,"Maak in dit vak uw keuze voor het aperitief",null,null,null,null,null,{"$f":"HLOOKUP($B$16,matrixen!$T$14:$AB$28,6,FALSE)","v":0},null,null,null,null,null,null,null,null,null,null,null,null,null,null,null,null,null,null,{"$f":"matrixen!B16","v":"Receptie D"}]
[null,null,null,null,null,null,null,{"$f":"HLOOKUP($B$16,matrixen!$T$14:$AB$28,7,FALSE)","v":0},null,null,null,null,null,null,null,null,null,null,null,null,null,null,null,null,null,null,{"$f":"matrixen!B17","v":"Receptie C"}]
[null,null,null,null,null,null,null,{"$f":"HLOOKUP($B$16,matrixen!$T$14:$AB$28,8,FALSE)","v":0},null,null,null,null,null,null,null,null,null,null,null,null,null,null,null,null,null,null,{"$f":"matrixen!B18","v":"Receptie B"}]
[null,null,null,null,null,null,null,{"$f":"HLOOKUP($B$16,matrixen!$T$14:$AB$28,9,FALSE)","v":0},null,null,null,null,null,null,null,null,null,null,null,null,null,null,null,null,null,null,{"$f":"matrixen!B19","v":"Receptie A"}]
[null,"Indien een genodigde een extra aperitief bestelt of een aperitief wenst die niet in de prijs begrepen is dan:",null,null,null,null,null,{"$f":"HLOOKUP($B$16,matrixen!$T$14:$AB$28,10,FALSE)","v":0}]
[null,"De gast die een extra aperitief bestelt betaalt deze zelf",null,null,null,"De gast die een extra aperitief bestelt betaalt deze zelf",null,{"$f":"HLOOKUP($B$16,matrixen!$T$14:$AB$28,11,FALSE)","v":0}]
[null,"De gast die een extra aperitief bestelt betaalt deze zelf",null,null,null,"Alle extra aperitief komt op de algemene rekening.",null,{"$f":"HLOOKUP($B$16,matrixen!$T$14:$AB$28,12,FALSE)","v":0},null,null,null,null,null,null,null,null,null,null,null,null,null,null,null,null,null,null,{"$f":"matrixen!B20","v":0}]
[null,null,null,null,null,null,null,{"$f":"HLOOKUP($B$16,matrixen!$T$14:$AB$28,13,FALSE)","v":0},null,null,null,null,null,null,null,null,null,null,null,null,null,null,null,null,null,null,{"$f":"matrixen!A193","v":"Kies hier uw soepen"}]
[null,null,null,null,null,null,null,{"$f":"HLOOKUP($B$16,matrixen!$T$14:$AB$28,14,FALSE)","v":0},null,null,null,null,null,null,null,null,null,null,null,null,null,null,null,null,null,null,{"$f":"matrixen!A194","v":"Schaaldierenroomsoep"}]
[null,null,null,null,null,null,null,{"$f":"HLOOKUP($B$16,matrixen!$T$14:$AB$28,15,FALSE)","v":0},null,null,null,null,null,null,null,null,null,null,null,null,null,null,null,null,null,null,{"$f":"matrixen!A195","v":"Noordzeeketeltje"}]
[null,null,null,null,null,null,null,null,null,null,null,null,null,null,null,null,null,null,null,null,null,null,null,null,null,null,{"$f":"matrixen!A196","v":"Romig groentesoepje , geparfumeerd met gerookte kipperfilets"}]
[null,"Eerste buffet = 2 soorten soep",null,null,null,null,null,null,null,null,null,null,null,null,null,null,null,null,null,null,null,null,null,null,null,null,{"$f":"matrixen!A197","v":"Ossenstaartsoep met verse stukjes ossenstaart"}]
[null,"* betekent geschikt voor vegetariers. ",null,null,null,null,null,null,null,null,null,null,null,null,null,null,null,null,null,null,null,null,null,null,null,null,{"$f":"matrixen!A198","v":"Komkommerroomsoep *"},null,null,null,null,null,{"$f":"matrixen!A212","v":0}]
[null,null,null,null,null,null,null,null,null,null,null,null,null,null,null,null,null,null,null,null,null,null,null,null,null,null,{"$f":"matrixen!A199","v":"Aspergeroomsoep met koornbloemblaadjes *"},null,null,null,null,null,{"$f":"matrixen!A213","v":0}]
[null,"Kies hier uw soepen",null,{"$f":"IF($B31=matrixen!$A$193,0,((VLOOKUP($B31,soepen,9,FALSE)-(matrixen!$I$209))/2))","v":0},null,null,null,null,null,null,null,null,null,null,null,null,null,null,null,null,null,null,null,null,null,null,{"$f":"matrixen!A200","v":"Aalsterse soep met toostje onder kaas (= ajuinsoep) *"},null,null,null,null,null,{"$f":"matrixen!A214","v":0}]
[null,"Kies hier uw soepen",null,null,null,null,null,null,null,null,null,null,null,null,null,null,null,null,null,null,null,null,null,null,null,null,{"$f":"matrixen!A201","v":"Pompoensoep (sept. okt. nov.) *"},null,null,null,null,null,{"$f":"matrixen!A215","v":0}]
[null,"Kies hier uw soepen",null,{"$f":"IF($B33=matrixen!$A$193,0,((VLOOKUP($B33,soepen,9,FALSE)-(matrixen!$I$209))/2))","v":0},null,null,null,null,null,null,null,null,null,null,null,null,null,null,null,null,null,null,null,null,null,null,{"$f":"matrixen!A202","v":"Kervelroomsoep met gerookte eend"},null,null,null,null,null,{"$f":"matrixen!A216","v":0}]
[null,null,null,null,null,null,null,null,null,null,null,null,null,null,null,null,null,null,null,null,null,null,null,null,null,null,{"$f":"matrixen!A203","v":"Preiroomsoep met broccoligarnituur en gebakken spekjes"},null,null,null,null,null,{"$f":"matrixen!A217","v":0}]
[null,"Tweede buffet = broodjes, beleg en mini koud buffet.",null,{"$f":"matrixen!E98","v":47.8},null,null,null,null,null,null,null,null,null,null,null,null,null,null,null,null,null,null,null,null,null,null,{"$f":"matrixen!A204","v":"Selderroomsoep *"},null,null,null,null,null,{"$f":"matrixen!A218","v":0}]
[null,"Kies hier in totaal 12 soorten. We voorzien ook een aardappelbereiding, groenten en sausen.",null,null,null,null,null,null,null,null,null,null,null,null,null,null,null,null,null,null,null,null,null,null,null,null,{"$f":"matrixen!A205","v":"Tomatenroomsoep *"},null,null,null,null,null,{"$f":"matrixen!A219","v":0}]
[1,"Kies uit deze vlees- of visspecialiteiten",null,null,null,null,null,null,null,null,null,null,null,null,null,null,null,null,null,null,null,null,null,null,null,null,{"$f":"matrixen!A206","v":"Soepje van boschampignons en gerookte paling"},null,null,null,null,null,{"$f":"matrixen!A220","v":0}]
[2,"Kies uit deze vlees- of visspecialiteiten",null,null,null,null,null,null,null,null,null,null,null,null,null,null,null,null,null,null,null,null,null,null,null,null,{"$f":"matrixen!A207","v":"Preisoep met gevogeltereepjes"},null,null,null,null,null,{"$f":"matrixen!A221","v":0}]
[3,"Kies uit deze vlees- of visspecialiteiten",null,null,null,null,null,null,null,null,null,null,null,null,null,null,null,null,null,null,null,null,null,null,null,null,{"$f":"matrixen!A208","v":"Wortelsoep *"},null,null,null,null,null,{"$f":"matrixen!A222","v":0}]
[4,"Kies uit deze vlees- of visspecialiteiten",null,null,null,null,null,null,null,null,null,null,null,null,null,null,null,null,null,null,null,null,null,null,null,null,{"$f":"matrixen!A209","v":"Agnes Sorel-roomsoep met shiitakes"}]
[5,"Kies uit deze vlees- of visspecialiteiten"]
[6,"Kies uit deze vlees- of visspecialiteiten"]
[7,"Kies uit deze vlees- of visspecialiteiten",null,null,null,null,null,null,null,null,null,null,null,null,null,null,null,null,null,null,null,null,null,null,null,null,{"$f":"matrixen!B23","v":"Schuimwijn van het huis (reeds inbegrepen)"}]
[8,"Kies uit deze vlees- of visspecialiteiten",null,null,null,null,null,null,null,null,null,null,null,null,null,null,null,null,null,null,null,null,null,null,null,null,{"$f":"matrixen!B24","v":"Cava"}]
[9,"Kies uit deze vlees- of visspecialiteiten",null,null,null,null,null,null,null,null,null,null,null,null,null,null,null,null,null,null,null,null,null,null,null,null,{"$f":"matrixen!B25","v":"Champagne"}]
[10,"Kies uit deze vlees- of visspecialiteiten",null,null,null,null,null,null,null,null,null,null,null,null,null,null,null,null,null,null,null,null,null,null,null,null,{"$f":"matrixen!B26","v":0}]
[11,"Kies uit deze vlees- of visspecialiteiten"]
[12,"Kies uit deze vlees- of visspecialiteiten",null,null,null,null,null,null,null,null,null,null,null,null,null,null,null,null,null,null,null,null,null,null,null,null,{"$f":"matrixen!B44","v":"Maak hier uw keuze voor extra hapjes bij het aperitief"}]
[null,null,null,null,null,null,null,null,null,null,null,null,null,null,null,null,null,null,null,null,null,null,null,null,null,null,{"$f":"matrixen!B45","v":"Nootjes, chips en zoutkoekjes zoveel u wenst,  per pers."}]
[null,{"$f":"matrixen!N96","v":"Kies uit deze vlees- of visspecialiteiten"},null,null,null,null,null,null,null,null,null,null,null,null,null,null,null,null,null,null,null,null,null,null,null,null,{"$f":"matrixen!B46","v":"Rauwe groenten (wortel, bloemkool, cocktailsaus) prijs per persoon:"}]
[null,null,null,null,null,null,null,null,null,null,null,null,null,null,null,null,null,null,null,null,null,null,null,null,null,null,{"$f":"matrixen!B47","v":"Warme toostjes per stuk"}]
[null,"Kies hier uw aardappelbereiding:",null,null,null,null,null,null,null,null,null,null,null,null,null,null,null,null,null,null,null,null,null,null,null,null,{"$f":"matrixen!B48","v":"Koude toostjes per stuk"}]
[null,"Koude aardappelen",null,{"$f":"VLOOKUP(B53,matrixen!B85:G88,6,FALSE)","v":"inbegrepen"},null,null,null,null,null,null,null,null,null,null,null,null,null,null,null,null,null,null,null,null,null,null,{"$f":"matrixen!B49","v":"aperitiefglaasjes per stuk"}]
[null,null,null,null,null,null,null,null,null,null,null,null,null,null,null,null,null,null,null,null,null,null,null,null,null,null,{"$f":"matrixen!B50","v":"Oesters per stuk warm of koud"}]
[null,null,null,{"$f":"IF(H58>0,H58,0)","v":0},null,null,null,null,null,null,null,null,null,null,null,null,null,null,null,null,null,null,null,null,null,null,{"$f":"matrixen!B51","v":"wachtbordje met vispasteitje"}]
[null,null,null,null,null,null,null,null,null,null,null,null,null,null,null,null,null,null,null,null,null,null,null,null,null,null,{"$f":"matrixen!B52","v":"wachtbordje van reuzentoost met gerookte zalm"}]
[null,null,null,null,null,null,null,null,null,null,null,null,null,null,null,null,null,null,null,null,null,null,null,null,null,null,{"$f":"matrixen!B53","v":"wachtbordje van lauw slaatje met gerookte zalm en scampi's"}]
[null,null,null,null,null,null,null,null,null,null,null,null,null,null,null,null,null,null,null,null,null,null,null,null,null,null,{"$f":"matrixen!B54","v":0}]
[null,"Selecteer hier uw formule van de dranken tijdens het buffet.",null,null,null,null,null,null,null,null,null,null,null,null,null,null,null,null,null,null,null,null,null,null,null,null,{"$f":"matrixen!B55","v":0}]
[null,"Huiswijn, bieren en frisdranken als forfait",null,{"$f":"VLOOKUP(B60,matrixen!B124:M125,12,FALSE)-matrixen!M124","v":0},null,null,null,null,null,null,null,null,null,null,null,null,null,null,null,null,null,null,null,null,null,null,{"$f":"matrixen!B56","v":0}]
[null,"Huiswijn, bieren en frisdranken als forfait",null,null,null,null,null,null,null,null,null,null,null,null,null,null,null,null,null,null,null,null,null,null,null,null,{"$f":"matrixen!B85","v":"Koude aardappelen"}]
[null,null,null,null,null,null,null,null,null,null,null,null,null,null,null,null,null,null,null,null,null,null,null,null,null,null,{"$f":"matrixen!B86","v":"Gebakken krielaardappeltjes"}]
[null,"Vierde buffet; mini dessertbuffet met volgende samenstelling:",null,null,null,null,null,null,null,null,null,null,null,null,null,null,null,null,null,null,null,null,null,null,null,null,{"$f":"matrixen!B87","v":"1/2 koude aardappelen en 1/2 krielaardappeltjes"}]
[null,null,null,null,null,null,null,null,null,null,null,null,null,null,null,null,null,null,null,null,null,null,null,null,null,null,{"$f":"matrixen!B88","v":"frietjes (supplement)"}]
[null,"Chocolademousse, fruitsla, speculoostaart, javanais en miserable.",null,"inbegrepen",null,null,null,null,null,null,null,null,null,null,null,null,null,null,null,null,null,null,null,null,null,null,{"$f":"matrixen!B96","v":0}]
[null,"Chocolademousse, fruitsla, speculoostaart, javanais en miserable.",null,null,null,null,null,null,null,null,null,null,null,null,null,null,null,null,null,null,null,null,null,null,null,null,{"$f":"matrixen!B97","v":0}]
[null,"Ook koffie is inbegrepen.",null,null,null,null,null,null,null,null,null,null,null,null,null,null,null,null,null,null,null,null,null,null,null,null,{"$f":"matrixen!B98","v":"Prijs walking dinner:"}]
[null,null,null,null,null,null,null,null,null,null,null,null,null,null,null,null,null,null,null,null,null,null,null,null,null,null,{"$f":"matrixen!N96","v":"Kies uit deze vlees- of visspecialiteiten"}]
[null,"Drankverbruik na 5 uren:",null,null,null,null,null,null,null,null,null,null,null,null,null,null,null,null,null,null,null,null,null,null,null,null,{"$f":"matrixen!N97","v":"varkensgebraad"}]
[null,"Alle drank na de maaltijd komt op één rekening en wordt door de organisator van het feest betaald",null,{"$f":"VLOOKUP(B70,matrixen!A159:P161,15,FALSE)","v":0},{"$f":"VLOOKUP(B70,matrixen!A159:P161,16,FALSE)","v":"één rekening"},"Vegetariërs: ","nee","Speciale dieten: ","nee","Halal bereidingen: ","nee",null,null,null,null,null,null,null,null,null,null,null,null,null,null,null,{"$f":"matrixen!N98","v":"salami"}]
[null,"Alle drank na de maaltijd komt op één rekening en wordt door de organisator van het feest betaald",null,null,null,null,null,null,null,null,null,null,null,null,null,null,null,null,null,null,null,null,null,null,null,null,{"$f":"matrixen!N99","v":"gekookte achterham"}]
[null,null,null,null,null,"Feest met discobar: ","nee","Allergenen: ","nee",{"$f":"IF($I$72=\"ja\",matrixen!A165,\"\")","v":""},null,null,null,null,null,null,null,null,null,null,null,null,null,null,null,null,{"$f":"matrixen!N100","v":"hennepot"}]
[null,null,null,null,null,null,null,null,null,{"$f":"IF($I$72=\"ja\",matrixen!A166,\"\")","v":""},null,null,null,null,null,null,null,null,null,null,null,null,null,null,null,null,{"$f":"matrixen!N101","v":"vleespastei"}]
[null,null,null,null,null,null,null,{"$f":"IF(G72=\"ja\",matrixen!A169,\"\")","v":""},null,{"$f":"IF($I$72=\"ja\",matrixen!A167,\"\")","v":""},null,null,null,null,null,null,null,null,null,null,null,null,null,null,null,null,{"$f":"matrixen!N102","v":"hoofdvlees"}]
[null,"Om een aanvraag naar ons te versturen stuur een mail naar info@katelijnenhof met in bijlage dit bestand.",null,null,null,null,null,null,null,null,null,null,null,null,null,null,null,null,null,null,null,null,null,null,null,null,{"$f":"matrixen!N103","v":"stukjes kippebout"}]
[null,null,null,null,null,null,null,null,null,null,null,null,null,null,null,null,null,null,null,null,null,null,null,null,null,null,{"$f":"matrixen!N104","v":"hespeworst"}]
[null,null,null,null,"Eventuele datum van het feest:",null,null,"Overzicht van uw selectie:",null,null,null,null,null,null,null,null,null,null,null,null,null,null,null,null,null,null,{"$f":"matrixen!N105","v":"gepocheerde zalm"}]
[null,null,null,null,null,"Het exacte aantal personen en de tafelschikking dient ons meegedeeld te worden de vrijdag van het weekend voordien.",null,{"$f":"IF(L78>0,B16,\"\")","v":""},null,null,null,{"$f":"D16","v":0},null,null,null,null,null,null,null,null,null,null,null,null,null,null,{"$f":"matrixen!N106","v":"gerookte bacon"}]
[null,null,null,null,"geraamd aantal volwassenen:",null,null,{"$f":"IF(D94>0,B94,\"\")","v":""},null,null,null,{"$f":"D94","v":0},null,null,null,null,null,null,null,null,null,null,null,null,null,null,{"$f":"matrixen!N107","v":"gerookte zalm"}]
[null,null,null,null,"geraamd aantal kinderen 6 j. t.e.m. 11 jr. 11 maand:",null,null,{"$f":"B28","v":"Eerste buffet = 2 soorten soep"},null,null,null,{"$f":"D31","v":0},null,null,null,null,null,null,null,null,null,null,null,null,null,null,{"$f":"matrixen!N108","v":"parmaham"}]
[null,null,null,null,"geraamd aantal kinderen 3 j. t.e.m. 5 j. 11 maand:",null,null,{"$f":"IF(B31=$AA$24,\"\",B31)","v":""},null,null,null,null,null,null,null,null,null,null,null,null,null,null,null,null,null,null,{"$f":"matrixen!N109","v":"haring met dille"}]
[null,null,null,null,"geraamd aantal kinderen  0 t.e.m. 2 j. 11 maand:",null,null,{"$f":"IF(B32=$AA$24,\"\",B32)","v":""},null,null,null,null,null,null,null,null,null,null,null,null,null,null,null,null,null,null,{"$f":"matrixen!N110","v":"roastbeef"}]
[null,null,null,null,null,null,null,{"$f":"B35","v":"Tweede buffet = broodjes, beleg en mini koud buffet."},null,null,null,null,null,null,null,null,null,null,null,null,null,null,null,null,null,null,{"$f":"matrixen!N111","v":"makreel met peper"}]
[null,null,null,null,"uur van aankomst:",null,null,{"$f":"IF(B37 = $AA$68,\"\",B37)","v":""},null,{"$f":"IF(B43=$AA$68,\"\",B43)","v":""},null,null,null,null,null,null,null,null,null,null,null,null,null,null,null,null,{"$f":"matrixen!N112","v":"américain préparé"}]
[null,null,null,null,"aan tafel om:",null,null,{"$f":"IF(B38 = $AA$68,\"\",B38)","v":""},null,{"$f":"IF(B44=$AA$68,\"\",B44)","v":""},null,null,null,null,null,null,null,null,null,null,null,null,null,null,null,null,{"$f":"matrixen!N113","v":"kip / curry"}]
[null,null,null,null,"Uw naam:",null,null,"",null,"",null,null,null,null,null,null,null,null,null,null,null,null,null,null,null,null,{"$f":"matrixen!N114","v":"kip / hawai"}]
[null,null,null,null,"Adres:",null,null,"",null,"",null,{"$f":"D51","v":0},null,null,null,null,null,null,null,null,null,null,null,null,null,null,{"$f":"matrixen!N115","v":"vleessalade"}]
[null,null,null,null,"Stad:",null,null,"",null,"",null,null,null,null,null,null,null,null,null,null,null,null,null,null,null,null,{"$f":"matrixen!N116","v":"krabsurimi"}]
[null,null,null,null,"Tel nr:",null,null,"",null,"",null,null,null,null,null,null,null,null,null,null,null,null,null,null,null,null,{"$f":"matrixen!N117","v":"tonijnsla"}]
[null,null,null,null,"email:",null,null,null,null,null,null,null,null,null,null,null,null,null,null,null,null,null,null,null,null,null,{"$f":"matrixen!N118","v":"tijgergarnalen in looksaus"}]
[null,null,null,null,"geraamde totalen uit andere rekenbladen:",null,null,{"$f":"B53","v":"Koude aardappelen"},null,null,null,{"$f":"D53","v":"inbegrepen"},null,null,null,null,null,null,null,null,null,null,null,null,null,null,{"$f":"matrixen!N119","v":"scampi diabolique"}]
[null,"Mogelijke supplementen bij de recepties",null,null,"(vb: kindermenus)",null,null,"Groenten en sausen ",null,null,null,"inbegrepen",null,null,null,null,null,null,null,null,null,null,null,null,null,null,{"$f":"matrixen!N120","v":"noordzeesalade"}]
[null,null,null,null,null,null,null,{"$f":"B60","v":"Huiswijn, bieren en frisdranken als forfait"},null,null,null,{"$f":"D60","v":0},null,null,null,null,null,null,null,null,null,null,null,null,null,null,{"$f":"matrixen!N121","v":"garnalensalade"}]
[null,"Schuimwijn van het huis (reeds inbegrepen)",null,{"$f":"VLOOKUP(B94,matrixen!B23:I26,8,FALSE)","v":0},null,null,null,{"$f":"B63","v":"Vierde buffet; mini dessertbuffet met volgende samenstelling:"},null,null,null,{"$f":"D55","v":0}]
[null,{"$f":"matrixen!B23","v":"Schuimwijn van het huis (reeds inbegrepen)"},null,null,"Geschat factuurtotaal:",{"$f":"Reservatievoorstel!I12","v":0},null,{"$f":"B65","v":"Chocolademousse, fruitsla, speculoostaart, javanais en miserable."},null,null,null,{"$f":"D67","v":0}]
[null,null,null,null,null,"(Gebaseerd op de door u ingebrachte gegevens)",null,{"$f":"B67","v":"Ook koffie is inbegrepen."},null,null,null,null,null,null,null,null,null,null,null,null,null,null,null,null,null,null,{"$f":"matrixen!A380","v":"Betaling op de dag zelf (cash of bancontact), u bekomt 2% korting op het totaal"}]
[null,null,null,null,null,"korting bij contante betaling:",{"$f":"F95*0.02","v":0},null,null,null,null,null,null,null,null,null,null,null,null,null,null,null,null,null,null,null,{"$f":"matrixen!A381","v":"Storting op BE 48 4631 1391 2127 of op BE 14 3770 7615 9383, min. 7 dagen voor het feest, 2% korting"}]
[null,null,null,null,null,"saldo:",{"$f":"F95-G97","v":0},{"$f":"B69","v":"Drankverbruik na 5 uren:"},null,null,null,{"$f":"E70","v":"één rekening"},null,null,null,null,null,null,null,null,null,null,null,null,null,null,{"$f":"matrixen!A382","v":"Betaling na het feest. Gelieve 40 % voorschot te storten op BE48 4631 1391 2127 of op BE14 3770 7615 9383 . Geen korting."}]
[null,null,null,null,{"$f":"SUMIF(B100:B104,\"warme toostjes per stuk\",D100:D104)","v":0},{"$f":"IF($E$99>0,matrixen!B58,\"\")","v":""},{"$f":"SUMIF(B100:B104,\"koude toostjes per stuk\",D100:D104)","v":0},"Gaat u akkoord met de algemene verkoopsvoorwaarden?",null,null,"ja"]
[null,null,null,null,null,{"$f":"IF($E$99>0,matrixen!B59,\"\")","v":""},null,null,null,"Voorkeur tafelschikking: ","geen voorkeur",null,null,null,null,null,null,null,null,null,null,null,null,null,null,null,{"$f":"matrixen!H99","v":0}]
[null,null,null,null,null,{"$f":"IF($E$99>0,matrixen!B60,\"\")","v":""},null,null,null,"reden feest:",null,null,null,null,null,null,null,null,null,null,null,null,null,null,null,null,{"$f":"matrixen!H100","v":0}]
[null,null,null,null,null,{"$f":"IF($E$99>0,matrixen!B61,\"\")","v":""},null,null,null,"Opmerking:"]
[null,null,null,null,null,{"$f":"IF($E$99>0,matrixen!B62,\"\")","v":""},null,null,null,"Wijze van betaling: ","Betaling op de dag zelf (cash of bancontact), u bekomt 2% korting op het totaal",null,null,null,null,null,null,null,null,null,null,null,null,null,null,null,{"$f":"matrixen!B124","v":"Huiswijn, bieren en frisdranken als forfait"}]
[null,null,null,null,null,{"$f":"IF($E$99>0,matrixen!B63,\"\")","v":""},null,{"$f":"IF($G$99>0,matrixen!E58,\"\")","v":""},{"$f":"SUMIF(B100:B104,\"aperitiefglaasjes per stuk\",D100:D104)","v":0},{"$f":"IF($I$104>0,matrixen!H58,\"\")","v":""},"Wenst u een factuur?",null,"nee",null,null,null,null,null,null,null,null,null,null,null,null,null,{"$f":"matrixen!B125","v":"Domaine Joel Delauny Touraine  en/of Château Reynier, Bordeaux superieur,  bieren en frisdranken"}]
[null,null,null,null,null,{"$f":"IF($E$99>0,matrixen!B64,\"\")","v":""},null,{"$f":"IF($G$99>0,matrixen!E59,\"\")","v":""},null,{"$f":"IF($I$104>0,matrixen!H59,\"\")","v":""},null,null,{"$f":"IF(M104=\"ja\",\"Gelieve uw facturatiegegevens bij opmerkingen in te vullen.\",\"\")","v":""}]
[null,null,null,null,null,null,null,{"$f":"IF($G$99>0,matrixen!E60,\"\")","v":""},null,{"$f":"IF($I$104>0,matrixen!H60,\"\")","v":""}]
[null,null,null,null,null,null,null,{"$f":"IF($G$99>0,matrixen!E61,\"\")","v":""},null,{"$f":"IF($I$104>0,matrixen!H61,\"\")","v":""},null,null,null,null,null,null,null,null,null,null,null,null,null,null,null,null,{"$f":"matrixen!B127","v":"Nog geen dessert geselecteerd"}]
[null,null,null,null,null,null,null,{"$f":"IF($G$99>0,matrixen!E62,\"\")","v":""},null,{"$f":"IF($I$104>0,matrixen!H62,\"\")","v":""},null,null,null,null,null,null,null,null,null,null,null,null,null,null,null,null,{"$f":"matrixen!B128","v":"Halve gegarneerde maan"}]
[null,null,null,null,null,null,null,{"$f":"IF($G$99>0,matrixen!E63,\"\")","v":""},null,{"$f":"IF($I$104>0,matrixen!H63,\"\")","v":""},null,null,null,null,null,null,null,null,null,null,null,null,null,null,null,null,{"$f":"matrixen!B129","v":"Waaier van nagerechten (gebak, ijs, chocomousse, fruit)"}]
[null,null,null,null,null,null,null,{"$f":"IF($G$99>0,matrixen!E64,\"\")","v":""},null,null,null,null,null,null,null,null,null,null,null,null,null,null,null,null,null,null,{"$f":"matrixen!B130","v":"IJstaart ambachtelijk, speciale vorm, smaak naar keuze"}]
[null,null,null,null,null,null,null,null,null,null,null,null,null,null,null,null,null,null,null,null,null,null,null,null,null,null,{"$f":"matrixen!B131","v":"Trio van witte- melk- en fondantchocolade op amandelbiscuit  "}]
[null,null,null,null,null,null,null,null,null,null,null,null,null,null,null,null,null,null,null,null,null,null,null,null,null,null,{"$f":"matrixen!B132","v":"Stel zelf uw mini dessertbordje samen met 4 dessertjes"}]
[null,null,null,null,null,null,null,null,null,null,null,null,null,null,null,null,null,null,null,null,null,null,null,null,null,null,{"$f":"matrixen!B133","v":"Coupe met vers fruit en verse slagroom."}]
[null,null,null,null,null,null,null,null,null,null,null,null,null,null,null,null,null,null,null,null,null,null,null,null,null,null,{"$f":"matrixen!B134","v":"Aardbeiensoepje met sinaasappel in seizoen"}]
[null,null,null,null,null,null,null,null,null,null,null,null,null,null,null,null,null,null,null,null,null,null,null,null,null,null,{"$f":"matrixen!B135","v":"Coupe met aardbeien en verse slagroom."}]
[null,null,null,null,null,null,null,null,null,null,null,null,null,null,null,null,null,null,null,null,null,null,null,null,null,null,{"$f":"matrixen!B136","v":"Dame blanche"}]
[null,null,null,null,null,null,null,null,null,null,null,null,null,null,null,null,null,null,null,null,null,null,null,null,null,null,{"$f":"matrixen!B137","v":"- frambozentaart"}]
[null,null,null,null,null,null,null,null,null,null,null,null,null,null,null,null,null,null,null,null,null,null,null,null,null,null,{"$f":"matrixen!B138","v":"- progres"}]
[null,null,null,null,null,null,null,null,null,null,null,null,null,null,null,null,null,null,null,null,null,null,null,null,null,null,{"$f":"matrixen!B139","v":{"$error":"#REF!"}}]
[null,null,null,null,null,null,null,null,null,null,null,null,null,null,null,null,null,null,null,null,null,null,null,null,null,null,{"$f":"matrixen!B140","v":"- fruitgebakje"}]
[null,null,null,null,null,null,null,null,null,null,null,null,null,null,null,null,null,null,null,null,null,null,null,null,null,null,{"$f":"matrixen!B141","v":"- biscuit crème fraiche met coulis"}]
[null,null,null,null,null,null,null,null,null,null,null,null,null,null,null,null,null,null,null,null,null,null,null,null,null,null,{"$f":"matrixen!B142","v":"- warme appeltaart met een bolletje ijs"}]
[null,null,null,null,null,null,null,null,null,null,null,null,null,null,null,null,null,null,null,null,null,null,null,null,null,null,{"$f":"matrixen!B143","v":"- zwarte woudtaart"}]
[null,null,null,null,null,null,null,null,null,null,null,null,null,null,null,null,null,null,null,null,null,null,null,null,null,null,{"$f":"matrixen!B144","v":{"$error":"#REF!"}}]
[null,null,null,null,null,null,null,null,null,null,null,null,null,null,null,null,null,null,null,null,null,null,null,null,null,null,{"$f":"matrixen!B145","v":"Sabayon met rood fruit"}]
[null,null,null,null,null,null,null,null,null,null,null,null,null,null,null,null,null,null,null,null,null,null,null,null,null,null,{"$f":"matrixen!B146","v":"Verse ananas met ijs en suikerspin"}]
[null,null,null,null,null,null,null,null,null,null,null,null,null,null,null,null,null,null,null,null,null,null,null,null,null,null,{"$f":"matrixen!B147","v":"Basis dessertbuffet met:"}]
[]
[null,null,null,null,null,null,null,null,null,null,null,null,null,null,null,null,null,null,null,null,null,null,null,null,null,null,{"$f":"matrixen!B154","v":"Nog geen keuze gemaakt"}]
[null,null,null,null,null,null,null,null,null,null,null,null,null,null,null,null,null,null,null,null,null,null,null,null,null,null,{"$f":"matrixen!B155","v":"Koffie 3 X bediend"}]
[null,null,null,null,null,null,null,null,null,null,null,null,null,null,null,null,null,null,null,null,null,null,null,null,null,null,{"$f":"matrixen!B156","v":"Koffie 3 X bediend met koekjes"}]
[null,null,null,null,null,null,null,null,null,null,null,null,null,null,null,null,null,null,null,null,null,null,null,null,null,null,{"$f":"matrixen!B157","v":"Koffie 3 X bediend met pralines"}]
[]
[null,null,null,null,null,null,null,null,null,null,null,null,null,null,null,null,null,null,null,null,null,null,null,null,null,null,{"$f":"matrixen!A159","v":"Alle drank na de maaltijd komt op één rekening en wordt door de organisator van het feest betaald"}]
[null,null,null,null,null,null,null,null,null,null,null,null,null,null,null,null,null,null,null,null,null,null,null,null,null,null,{"$f":"matrixen!A160","v":"Elke gast die na de maaltijd een drankje bestelt rekent direct af aan de bar"}]
[null,null,null,null,null,null,null,null,null,null,null,null,null,null,null,null,null,null,null,null,null,null,null,null,null,null,{"$f":"matrixen!A161","v":"Forfait voor drank naar believen (alle bieren en frisdranken van de drankkaart in de zaal) na een maaltijd. pp: "}]
[]
[null,null,null,null,null,null,null,null,null,null,null,null,null,null,null,null,null,null,null,null,null,null,null,null,null,null,{"$f":"matrixen!A187","v":"ja"}]
[null,null,null,null,null,null,null,null,null,null,null,null,null,null,null,null,null,null,null,null,null,null,null,null,null,null,{"$f":"matrixen!A188","v":"nee"}]
[]
[null,null,null,null,null,null,null,null,null,null,null,null,null,null,null,null,null,null,null,null,null,null,null,null,null,null,"geen voorkeur"]
[null,null,null,null,null,null,null,null,null,null,null,null,null,null,null,null,null,null,null,null,null,null,null,null,null,null,"zoveel mogelijk ronde tafels van 6 à 8 personen"]
[null,null,null,null,null,null,null,null,null,null,null,null,null,null,null,null,null,null,null,null,null,null,null,null,null,null,"liever lange tafels ev. In U-vorm of H-vorm."]

{"sheet":"matrixen","index":1,"n_rows":382,"n_cols":28,"rows_kept":382,"cut":false,"hidden":true,"merged":[]}
[null,"2018-02-23",null,null,null,null,null,null,null,null,null,"lam, zwanen enz..  . Met foto suppl.",null,null,null,15]
[null,null,null,null,null,null,null,null,null,null,null,"Foto op de taart: suppl. € ",null,null,0.7,"per stuk taart en € ",null,10," per foto"]
[]
[]
[]
[null,"Minimaal verbruik feest",null,null,950]
[]
[]
[]
[]
[null,"Maak in dit vak uw keuze voor het aperitief",null,null,null,null,null,null,10]
[null,"1 aperitief per persoon",null,null,null,null,null,null,6]
[null,"2 aperitieven per persoon",null,null,null,null,null,null,10]
[null,"Receptie F",null,null,null,null,null,null,15.5,null,"Maak in dit vak uw keuze voor het aperitief","1 aperitief per persoon","2 aperitieven per persoon","Receptie F","Receptie E","Receptie D","Receptie C","Receptie B","Receptie A","Maak in dit vak uw keuze voor het aperitief","1 aperitief per persoon","2 aperitieven per persoon","Receptie F","Receptie E","Receptie D","Receptie C","Receptie B","Receptie A"]
[null,"Receptie E",null,null,null,null,null,null,12.600000000000001,null,null,"1 per persoon,  ","2 per persoon,  ","Zeer uitgebreide receptie","Uitgebreide receptie","Basis receptie.","Zeer uitgebreide receptie","Uitgebreide receptie","Basis receptie.",null,"vrije keuze","vrije keuze","dranken inbegrepen gedurende 2 uur","dranken inbegrepen gedurende 2 uur","dranken inbegrepen gedurende 2 uur","dranken inbegrepen gedurende 2 uur","dranken inbegrepen gedurende 2 uur","dranken inbegrepen gedurende 2 uur"]
[null,"Receptie D",null,null,null,null,null,null,11.100000000000001,null,null,"eventueel tweede wordt","eventueel derde wordt","met 4 aperitiefglaasjes,","met 4 aperitiefglaasjes","Dranken 2 uur inbegrepen.","met 3 koude toastjes en 3 warme ","met 3 koude toastjes en 3 warme ","Dranken 2 uur inbegrepen.",null,"Porto rood","Porto rood","met Schuimwijn van het huis en alle frisdranken en bieren naar believen, ","met Schuimwijn van het huis en alle frisdranken en bieren naar believen, ","met Schuimwijn van het huis en alle frisdranken en bieren naar believen, ","met Schuimwijn van het huis en alle frisdranken en bieren naar believen, ","met Schuimwijn van het huis en alle frisdranken en bieren naar believen, ","met Schuimwijn van het huis en alle frisdranken en bieren naar believen, "]
[null,"Receptie C",null,null,null,null,null,null,15.5,null,null,"direct afgerekend of","direct afgerekend of","een soepje, 2 warme hapjes"," en drank gedurende 2 uur.",null,"hapjes, kleine versnaperingen","hapjes, kleine versnaperingen",null,null,"Martini","Martini","Assortiment van 4 aperitiefglaasjes (samenstelling kan verschillen), een soepje en 2 warme hapjes","Assortiment van 4 aperitiefglaasjes: (samenstelling kan verschillen)","kaasjes, salami, tapenades,","kaasjes, salami,  olijven, nootjes en chips.","kaasjes, salami,  olijven, nootjes en chips.","tapenades"]
[null,"Receptie B",null,null,null,null,null,null,12.600000000000001,null,null,"komt op 1 rekening","komt op 1 rekening","en drank gedurende 2 uur.",null,null,"en drank gedurende 2 uur.",null,null,null,"Kir","Kir","* eendenmousse met rode bessen en koornbloemblaadjes","* eendenmousse met rode bessen en koornbloemblaadjes"," olijven en nootjes en chips","lepeltje gevuld met vismousse","lepeltje gevuld met vismousse","nootjes en chips"]
[null,"Receptie A",null,null,null,null,null,null,10,null,null,null,null,null,null,null,null,null,null,null,"Frisdrank","Frisdrank","* luzerne met gerookte zalm, eitjes van vliegende vis in wasabi","* luzerne met gerookte zalm, eitjes van vliegende vis in wasabi",null,"lepeltje gevuld met vleesmousse","lepeltje gevuld met vleesmousse"]
[null,null,null,null,null,null,null,null,null,null,null,null,null,null,null,null,null,null,null,null,"Bieren","Bieren","* mousse van krab met rode bietscheutjes","* mousse van krab met rode bietscheutjes",null,"3 warme hapjes pp","3 warme hapjes pp"]
[null,null,null,null,null,null,null,null,null,null,null,null,null,null,null,null,null,null,null,null,"nootjes en chips inbegrepen","nootjes en chips inbegrepen","* preischeuten met garnalen en mini tomaat","* preischeuten met garnalen en mini tomaat",null,"* kippenbilletje * toastcupje * garnaal in filodeeg","* kippenbilletje * toastcupje * garnaal in filodeeg"]
[null,null,null,null,null,null,null,null,null,null,null,null,null,null,null,null,null,null,null,null,"TIP:","TIP:","* tomatensoepje en 2 warme hapjes, standaard een garnaal in filodeeg en een kippenvleugeltje",null,null,"3 koude toostjes pp"]
[null,"Schuimwijn van het huis (reeds inbegrepen)",null,null,null,null,null,null,0,null,null,null,null,null,null,null,null,null,null,null,"Een receptie naar believen","Receptie A is dezelfde prijs.","TIP: Er is veel meer keuze dan de standaard hapjes","TIP: Er is veel meer keuze dan de standaard hapjes",null,"* gerookte zalm * vissalade * grijze garnalen"]
[null,"Cava",null,null,null,null,null,null,3.25,null,null,null,null,null,null,null,null,null,null,null,"kost evenveel als","Maar daar is de drank naar believen gedurende ","die hierboven vermeld worden. Via deze tool kunt u dit","die hierboven vermeld worden. Via deze tool kunt u dit",null,"Tip: Bovenstaande hapjes kunnen ook gewijzigd worden.","Tip: Bovenstaande hapjes kunnen ook gewijzigd worden."]
[null,"Champagne",null,null,null,null,null,null,7,null,null,null,null,null,null,null,null,null,null,null,"2 aperitieven per persoon.","maximaal 2 uur. En er zijn wat tapenades.","niet aanpassen maar wel als u bij ons langskomt. ","niet aanpassen maar wel als u bij ons langskomt. ",null,"Niet via deze tool maar wel bij reservatie","Niet via deze tool maar wel bij reservatie"]
[null,null,null,null,null,null,null,null,null,null,null,null,null,null,null,null,null,null,null,null,"Selecteer daartoe receptie A!","We komen rond met schuimwijn en ","De keuzemogelijkheden staan gedetailleerd ","De keuzemogelijkheden staan gedetailleerd ",null,"De keuzemogelijkheden staan gedetailleerd ","De keuzemogelijkheden staan gedetailleerd "]
[null,null,null,null,null,null,null,null,null,null,null,null,null,null,null,null,null,null,null,null,0,"fruitsap maar alle bovenstaande dranken","beschreven in het pdf document \"prijslijst\" pagina 9.","beschreven in het pdf document \"prijslijst\" pagina 9.",null,"beschreven in het pdf document \"prijslijst\" pagina 9.","beschreven in het pdf document \"prijslijst\" pagina 9."]
[null,null,null,null,null,null,null,null,null,null,null,null,null,null,null,null,null,null,null,null,0,"kunnen op vraag ook bekomen worden.","U krijgt hier wel een prijsindicatie maar weet dat er meer moglijkheden zijn.","U krijgt hier wel een prijsindicatie maar weet dat er meer moglijkheden zijn.",null,"U krijgt hier wel een prijsindicatie maar weet dat er meer moglijkheden zijn.","U krijgt hier wel een prijsindicatie maar weet dat er meer moglijkheden zijn."]
[]
[null,"Dessertbuffet zonder maaltijd: ",null,null,null,null,null,null,16.5]
[null,"Koffie 3 X bediend",null,null,null,null,null,null,2.5]
[]
[]
[null,"1 aperitief per persoon, vrije keuze",null,null,null,null,null,null,6]
[null,"Pineau des charentes wit",null,null,null,null,null,null,6]
[null,"Maison (basis safari)",null,null,null,null,null,null,6]
[null,"Kir royale",null,null,null,null,null,null,6]
[null,"Sherry dry",null,null,null,null,null,null,6]
[null,"Porto",null,null,null,null,null,null,6]
[null,"Martini (wit/rood)",null,null,null,null,null,null,6]
[null,"Kir",null,null,null,null,null,null,6]
[null,"Schuimwijn",null,null,null,null,null,null,6]
[]
[null,"Maak hier uw keuze voor extra hapjes bij het aperitief"]
[null,"Nootjes, chips en zoutkoekjes zoveel u wenst,  per pers.",null,null,null,null,null,null,"gratis"]
[null,"Rauwe groenten (wortel, bloemkool, cocktailsaus) prijs per persoon:",null,null,null,null,null,null,1]
[null,"Warme toostjes per stuk",null,null,null,null,null,null,1]
[null,"Koude toostjes per stuk",null,null,null,null,null,null,1.3]
[null,"aperitiefglaasjes per stuk",null,null,null,null,null,null,2]
[null,"Oesters per stuk warm of koud",null,null,null,null,null,null,2.2999999999999998]
[null,"wachtbordje met vispasteitje",null,null,null,null,null,null,4]
[null,"wachtbordje van reuzentoost met gerookte zalm",null,null,null,null,null,null,4]
[null,"wachtbordje van lauw slaatje met gerookte zalm en scampi's",null,null,null,null,null,null,6]
[]
[]
[]
[]
[null,"Keuze warme toostjes",null,null,"Keuze koude toostjes",null,null,"Keuze aperoglaasjes"]
[null,"(bij reservatie te bepalen)",null,null,"(bij reservatie te bepalen)",null,null,"(bij reservatie te bepalen)"]
[null,"kippenbilletjes",null,null,"toost garnaal koud",null,null,"aperoglaasje eendenmousse"]
[null,"toostcupje",null,null,"toost gerookte zalm koud",null,null,"aperoglaasje gerookte zalm"]
[null,"garnaal in filo",null,null,"toost krabsla koud",null,null,"aperoglaasje mousse van krab"]
[null,"mini croque",null,null,"toost eendenpastei koud",null,null,"aperoglaasje tomaat / garnaal"]
[null,"mini loempia"]
[]
[]
[]
[]
[null,null,"uitgebreide fomule met toostjes in menuvorm (max 3uur)"]
[null,null,"“3 koude voorgerechtjes”"]
[null,null,"koud hapje met krabsla "]
[null,null,"koud hapje met gerookte zalm"]
[null,null,"koud hapje met grijze garnalen"]
[null,null,"“soepje”"]
[null,null,"1 mini soepje tomatenroom of vissoepje"]
[null,null,"“3 warme gerechtjes”"]
[null,null,"kippenboutje"]
[null,null,"mini loempia"]
[null,null,"mini croque monsieur"]
[null,null,"“2 dessertjes”"]
[null,null,"mini-brochetje met druifje, ananas en meloenbolletje"]
[null,null,"mini confituurtaartje"]
[]
[]
[null,"Koude aardappelen",null,null,null,null,"inbegrepen"]
[null,"Gebakken krielaardappeltjes",null,null,null,null,"inbegrepen"]
[null,"1/2 koude aardappelen en 1/2 krielaardappeltjes",null,null,null,null,"inbegrepen"]
[null,"frietjes (supplement)",null,null,null,null,1]
[]
[]
[]
[]
[]
[]
[]
[null,null,null,null,null,null,null,null,null,null,null,null,1,"Kies uit deze vlees- of visspecialiteiten"]
[null,null,null,null,null,null,null,null,null,null,null,null,2,"varkensgebraad"]
[null,"Prijs walking dinner:",null,null,47.8,"met huiswijn",null,null,null,null,null,null,3,"salami"]
[null,null,null,null,53.5,"metDe Kaapse leeuw  Chenin blanc (wit) en Chat. Reynier bordeaux superieur (rood)  ",null,null,null,null,null,null,4,"gekookte achterham"]
[null,null,null,null,null,null,null,null,null,null,null,null,5,"hennepot"]
[null,null,null,null,null,null,null,null,null,null,null,null,6,"vleespastei"]
[null,null,null,null,null,null,null,null,null,null,null,null,7,"hoofdvlees"]
[null,null,null,null,null,null,null,null,null,null,null,null,8,"stukjes kippebout"]
[null,null,null,null,null,null,null,null,null,null,null,null,9,"hespeworst"]
[null,null,null,null,null,null,null,null,null,null,null,null,10,"gepocheerde zalm"]
[null,null,null,null,null,null,null,null,null,null,null,null,11,"gerookte bacon"]
[null,null,null,null,null,null,null,null,null,null,null,null,12,"gerookte zalm"]
[null,null,null,null,null,null,null,null,null,null,null,null,13,"parmaham"]
[null,null,null,null,null,null,null,null,null,null,null,null,14,"haring met dille"]
[null,null,null,null,null,null,null,null,null,null,null,null,15,"roastbeef"]
[null,null,null,null,null,null,null,null,null,null,null,null,16,"makreel met peper"]
[null,null,null,null,null,null,null,null,null,null,null,null,17,"américain préparé"]
[null,null,null,null,null,null,null,null,null,null,null,null,18,"kip / curry"]
[null,null,null,null,null,"Hier prijs KB aanpassen8/09/2012",null,null,null,null,null,null,19,"kip / hawai"]
[null,null,null,null,null,null,null,null,null,null,null,null,20,"vleessalade"]
[20,"makreel met peper",null,null,null,null,null,null,null,null,null,null,21,"krabsurimi"]
[null,"basisprijs",null,null,"sup. Tov basisprijs",null,null,"sup. Tov basisprijs",null,null,null,null,22,"tonijnsla"]
[null,31,null,null,5,null,null,8.5,null,null,null,null,23,"tijgergarnalen in looksaus"]
[null,"Basisprijs buffet:",null,null,"Supplement \"koning\"",null,null,"Supplement \"keizer\"",null,null,null,null,24,"scampi diabolique"]
[null,null,null,null,null,null,null,null,null,null,null,null,25,"noordzeesalade"]
[null,null,null,null,null,null,null,null,null,null,null,null,26,"garnalensalade"]
[]
[]
[null,"Huiswijn, bieren en frisdranken als forfait",null,null,null,null,null,null,null,null,null,null,2.8]
[null,"Domaine Joel Delauny Touraine  en/of Château Reynier, Bordeaux superieur,  bieren en frisdranken",null,null,null,null,null,null,null,null,null,null,7]
[]
[null,"Nog geen dessert geselecteerd"]
[null,"Halve gegarneerde maan",null,null,null,null,null,null,8.8000000000000007,null,"Een echte smaakbom van chocolade, rode vruchten en basilicum"]
[null,"Waaier van nagerechten (gebak, ijs, chocomousse, fruit)",null,null,null,null,null,null,6,null,"Zeer royaal bord met gebak, ijs, chocomousse en fruit"]
[null,"IJstaart ambachtelijk, speciale vorm, smaak naar keuze",null,null,null,null,null,null,5.3,null,"Ijstaart met foto: 15 euro per foto (min personen). Speciale garnituren mits meerprijs mogelijk."]
[null,"Trio van witte- melk- en fondantchocolade op amandelbiscuit  ",null,null,null,null,null,null,5.9]
[null,"Stel zelf uw mini dessertbordje samen met 4 dessertjes",null,null,null,null,null,null,3.9,null,"Roomijs en/of Bruine chocolademousse en/of Pasteis de nata en/of "]
[null,"Coupe met vers fruit en verse slagroom.",null,null,null,null,null,null,3.9,null,"Vanilleijs, vers fruit en verse slagroom"]
[null,"Aardbeiensoepje met sinaasappel in seizoen",null,null,null,null,null,null,3.9,null,"Sinaasappelsap met grand marnier en daarin vers gesneden aardbeien (alleen in seizoen)"]
[null,"Coupe met aardbeien en verse slagroom.",null,null,null,null,null,null,3.9,null,"Vanilleijs, verse aardbeien en verse slagroom"]
[null,"Dame blanche",null,null,null,null,null,null,3.9,null,"Vanilleijs, verse slagroom,warme chocoladesaus."]
[null,"- frambozentaart",null,null,null,null,null,null,5.75,null,"De lekkerste van alle gebakjes."]
[null,"- progres",null,null,null,null,null,null,5.75,null,"Een klassieker."]
[null,{"$error":"#REF!"},null,null,null,null,null,null,{"$error":"#REF!"}]
[null,"- fruitgebakje",null,null,null,null,null,null,3.9,null,"Klein maar fijn gebakje"]
[null,"- biscuit crème fraiche met coulis",null,null,null,null,null,null,3.9,null,"Vrij groot stuk met slagroom. Foto op de taart: suppl. € 0,7 per stuk taart en € 10 per foto "]
[null,"- warme appeltaart met een bolletje ijs",null,null,null,null,null,null,3.9,null,"Hier heb je zowel gebak als vanilleijs."]
[null,"- zwarte woudtaart",null,null,null,null,null,null,5.75,null,"Biscuit met cacaopoeder in een tasje."]
[null,{"$error":"#REF!"},null,null,null,null,null,null,{"$error":"#REF!"}]
[null,"Sabayon met rood fruit",null,null,null,null,null,null,3.9,null,"Sabayon, fruit en ijs"]
[null,"Verse ananas met ijs en suikerspin",null,null,null,null,null,null,3.9]
[null,"Basis dessertbuffet met:",null,null,null,null,null,null,10,null,"vers fruit, verschillende soorten sorbet, chocolademousse, roomijs"]
[null,null,null,null,null,null,null,null,null,null,"variatie van gebak miserable, javanais, appeltaart, mini éclair, speculoostaart,"]
[null,null,null,null,null,null,null,null,null,null,"roomijs"]
[null,null,null,null,null,null,null,null,null,null,"De samenstelling van het buffet kan verschillen, naargelang de grootte van de groep"]
[null,null,null,null,null,null,null,null,null,null,"Belangrijk: De prijs van dit dessertbuffet geldt alleen indien voorafgegaan door een maaltijd!!"]
[]
[]
[null,"Nog geen keuze gemaakt"]
[null,"Koffie 3 X bediend",null,null,null,null,null,"€ ",2.5]
[null,"Koffie 3 X bediend met koekjes",null,null,null,null,null,"€ ",3.35]
[null,"Koffie 3 X bediend met pralines",null,null,null,null,null,"€ ",3.9]
[]
["Alle drank na de maaltijd komt op één rekening en wordt door de organisator van het feest betaald",null,null,null,null,null,null,null,null,null,null,null,null,null,null,"één rekening"]
["Elke gast die na de maaltijd een drankje bestelt rekent direct af aan de bar",null,null,null,null,null,null,null,null,null,null,null,null,null,null,"direct afrekenen"]
["Forfait voor drank naar believen (alle bieren en frisdranken van de drankkaart in de zaal) na een maaltijd. pp: ",null,null,null,null,null,null,null,null,null,null,null,null,null,16,16,"alletwee de prijzen nodig!"]
["Indien  er geen volwaardige maaltijd wordt genomen, dienen er minstens 4 belegde broodjes genomen te worden en verhoogt het drankforfait tot € 28,00 ",null,null,null,null,null,null,null,null,null,null,null,null,null,null,28]
["'s middags tot 21 u - 's avonds onbeperkt. Let op! Artikel 8 van de verkoopsvoorwaarden (zie laatste bladzijde) kan hier van toepassing zijn !!!!"]
[]
["Neem contact op met de zaakvoerder op tel nr 0475/618058",null,null,null,null,null,null,null,null,null,null,null,null,null,null,"x"]
["om hier zeker geen misverstanden over te hebben!"]
[]
[]
["Verbruik van DJ  ten laste van de klant"]
[]
["Voor onze vegetarische klanten:"]
[]
["- Voor onze vegetarische klanten bereiden wij graag een aparte schotel. "]
["Wij vragen wel met aandrang om op voorhand te melden als er vegetariërs zijn."]
["Zij eten mee aan de prijs van de rest van de groep."]
[]
[]
[]
[]
["Mensen met een speciaal dieet:"]
[]
["Wij houden rekening met speciale wensen van mensen die een dieet volgen, "]
["maar alleen indien op voorhand gemeld. "]
[]
["Halal kan ook, onder toezicht van een moslim bereid."]
[]
["ja"]
["nee"]
[]
[]
[]
[]
["Kies hier uw soepen"]
["Schaaldierenroomsoep",null,null,null,null,null,null,"€ ",10]
["Noordzeeketeltje",null,null,null,null,null,null,"€ ",6]
["Romig groentesoepje , geparfumeerd met gerookte kipperfilets",null,null,null,null,null,null,"€ ",6]
["Ossenstaartsoep met verse stukjes ossenstaart",null,null,null,null,null,null,"€ ",6]
["Komkommerroomsoep *",null,null,null,null,null,null,"€ ",4]
["Aspergeroomsoep met koornbloemblaadjes *",null,null,null,null,null,null,"€ ",4]
["Aalsterse soep met toostje onder kaas (= ajuinsoep) *",null,null,null,null,null,null,"€ ",4]
["Pompoensoep (sept. okt. nov.) *",null,null,null,null,null,null,"€ ",4]
["Kervelroomsoep met gerookte eend",null,null,null,null,null,null,"€ ",4]
["Preiroomsoep met broccoligarnituur en gebakken spekjes",null,null,null,null,null,null,"€ ",4]
["Selderroomsoep *",null,null,null,null,null,null,"€ ",4]
["Tomatenroomsoep *",null,null,null,null,null,null,"€ ",4]
["Soepje van boschampignons en gerookte paling",null,null,null,null,null,null,"€ ",4]
["Preisoep met gevogeltereepjes",null,null,null,null,null,null,"€ ",4]
["Wortelsoep *",null,null,null,null,null,null,"€ ",4]
["Agnes Sorel-roomsoep met shiitakes",null,null,null,null,null,null,"€ ",4]
[]
[]
[]
[]
[]
[]
[]
[]
[]
[]
[]
[]
[]
[]
["Vierde buffet; mini dessertbuffet met volgende samenstelling:"]
[]
["Chocolademousse, fruitsla, speculoostaart, javanais en miserable."]
[]
["Ook koffie is inbegrepen."]
[]
[]
[]
[]
[]
[]
[]
[]
[]
[]
[]
[]
[]
[]
[]
[]
[]
[]
[]
[]
[]
[]
[]
[]
[]
[]
[]
[]
[]
[]
[]
[]
[]
[]
[]
[]
[]
[]
[]
[]
[]
[]
[]
[]
[]
[]
[]
[]
[]
[]
[]
[]
[]
[]
[]
[]
[]
[]
[]
[]
[]
[]
[]
[]
[]
[]
[]
[]
[]
[]
[]
[]
[]
[]
[]
[]
[]
[]
[]
[]
[]
[]
[]
[]
[]
[]
[]
[]
[]
[]
[]
[]
[]
[]
[]
[]
[]
[]
[]
[]
[]
[]
[]
[]
[]
[]
[]
[]
[]
[]
[]
[]
[]
[]
[]
[]
[]
[]
[]
[]
[]
[]
[]
[]
[]
[]
[]
[]
[]
[]
[]
[]
[]
[]
[]
[]
[]
[]
[]
[]
[]
[]
[]
[]
[]
[]
[]
[]
[]
[]
[]
["Betaling op de dag zelf (cash of bancontact), u bekomt 2% korting op het totaal"]
["Storting op BE 48 4631 1391 2127 of op BE 14 3770 7615 9383, min. 7 dagen voor het feest, 2% korting"]
["Betaling na het feest. Gelieve 40 % voorschot te storten op BE48 4631 1391 2127 of op BE14 3770 7615 9383 . Geen korting."]

{"sheet":"Algemene verkoopsvoorwaarden","index":2,"n_rows":63,"n_cols":13,"rows_kept":63,"cut":false,"hidden":false,"merged":[]}
[null,"Algemene verkoopsvoorwaarden:"]
[null,"1) Onze facturen zijn contant te betalen bij levering van de goederen. Bijgevolg zal in geval van laattijdige betaling"]
[null,"van rechtswege en zonder voorafgaande ingebrekestelling een intrest aangerekend worden van 12% per jaar op de "]
[null,"bedragen, verschuldigd acht dagen na de vervaldag van de facturen. Tevens zal bij gebrek aan betaling na "]
[null,"aanmaning bij gewone brief, het verschuldigde bedrag van rechtswege verhoogd worden met een forfaitaire"]
[null,"vergoeding van 12 % met een minimum van € 50  voor bijkomende administratieve kosten, debiteurenbewaking "]
[null,"en commerciële stoornissen. Wij behouden ons het recht voor op elk moment de leveringen te staken. Elke "]
[null,"klacht over de kwaliteit van de geleverde goederen moet uiterlijk 24 uur na de levering worden overgemaakt. "]
[null,"Klachten in verband met facturatie kunnen slechts in aanmerking worden genomen zo zij binnen de acht "]
[null,"dagen na ontvangst van de goederen bij aangetekende brief worden meegedeeld. In geval van betwisting zijn "]
[null,"uitsluitend de rechtbanken van Kortrijk bevoegd. De leveringen  geschieden op risico van de bestemmeling. Er "]
[null,"wordt uitdrukkelijk overeengekomen dat de klant door het plaatsen van een bestelling onze algemene "]
[null,"verkoopsvoorwaarden erkent. Elke wijziging hieraan moet voorafgaandelijk in een schriftelijk akkoord worden "]
[null,"vastgelegd."]
[]
[null,"2) Annulatie dient schriftelijk en gedateerd te geschieden. "]
[null,"In geval van annulatie minder dan 60 dagen voor de activiteit blijft het voorschot eigendom van het Katelijnenhof."]
[null,"Voor annulatie minder dan 10 dagen voor de activiteit is de klant in alle gevallen verplicht 35 % van de reservatie-"]
[null,"waarde van de gehele manifestatie te vergoeden."]
[null,"Bij annulatie minder dan 5 dagen voor  de activiteit is de klant in alle gevallen verplicht de reservatie waarde van de "]
[null,"gehele manifestatie te vergoeden."]
[]
[null,"3) Iedere levering van dranken, voedingswaren of diensten in de  zalen is uitsluitend voorbehouden aan het "]
[null,"Katelijnenhof, tenzij er een andere schriftelijke overeenkomst is."]
[]
[null,"4) De klant is eraan gehouden voor iedere dansavond met groot orkest een aanvraag tot toelating in te dienen bij "]
[null,"SABAM, Rijselsestraat 51, 8500 Kortrijk, Tel : 056/210738 en alle kosten voortvloeiend uit deze aanvraag te "]
[null,"dragen.  Voor een gewone disc-jockey betalen wij jaarlijks een vaste bijdrage. Het verbruik (drank en voeding) "]
[null,"van de DJ is ten laste van de klant. Gelet op de nieuwe geluidsnormen, van kracht op 01/01/2013, moet de "]
[null,"klant de DJ of elke andere persoon of toestel dat  geluid produceert verplichten zich aan deze normen te houden. "]
[null,"De toelating voor onze zaal is – maximaal geluidsniveau > 85 dB(A) LAeq,15min en ≤ 95 dB(A) LAeq,15min. "]
[null,"Dit is ruim voldoende. Alle boetes ten gevolge een overschrijding van deze voorwaarde zijn ten laste van de "]
[null,"klant. Er wordt een professionele houding van elke DJ of geluidstechnicus verwacht."]
[]
[null,"5) Alle door de klant meegebrachte materiaal dient door de klant te worden verzekerd en direct na het beëindigen"]
[null,"van de manifestatie te worden verwijderd uit de zaal. Het Katelijnenhof behoudt het recht de leverancier te "]
[null,"aanvaarden en voorschriften te geven om de lokalen ongeschonden te behouden. Het is strikt verboden om "]
[null,"versieringen aan de muren of plafonds te bevestigen met duimspijkers of kleefband ! Bij beschadigingen van "]
[null,"een deel van de muur wordt het geheel als beschadigd beschouwd."]
[]
[null,"6) Het gebruik van de zaal is strikt beperkt tot de in deze overeenkomst vastgestelde functie. "]
[null,"Iedere wijziging in de voorheen verklaarde bestemming brengt automatisch het recht tot prijsherziening met zich mee."]
[]
[null,"7) Het gebruik van de zaal is gratis van zodra het verbruik hoger ligt dan € ",null,null,null,null,null,null,null,{"$f":"matrixen!E6","v":950}]
[null,{"$f":"\"Indien het verbruik lager ligt dan wordt het factuurbedrag opgetrokken tot € \"&J44","v":"Indien het verbruik lager ligt dan wordt het factuurbedrag opgetrokken tot € 950"}]
[null,"Indien uw feest cash (max € 3000) betaald wordt op de dag zelf dan krijgt u een korting van 2 % "]
[null,"op de gehele factuur. Voor traiteurdienst gelden andere kortingsregels."]
[]
[null,"8) Op vrijdag-, zaterdag- en (in geval van een avondfeest) op zondagnacht sluit de zaal, "]
[null,"overeenkomstig het politiereglement, om 03 uur. "]
[null,"Indien de klant dit wenst kan een afwijking bekomen worden op dit reglement mits het betalen van € ",null,null,null,null,null,null,null,null,null,null,{"$f":"J44/10","v":95}]
[null,"(btw incl.) per uur. De klant heeft tijd tot 02u30 om te beslissen of hij van deze afwijking wenst gebruik te "]
[null,"maken of niet. Indien de klant akkoord gaat deze toeslag  te betalen zal het Katelijnenhof  onmiddellijk een "]
[null,"aanvraag doen bij de lokale politie. In het andere geval worden vanaf 02u45 geen dranken meer bediend en"]
[null,"sluiten om 03u00 de deuren. Voor de andere dagen gelden andere tarieven."]
[null,"Op een zaterdag - en zondagmiddagfeest sluit de zaal om 18u30. Indien u wenst langer te blijven wordt per "]
[null,"begonnen uur eveneens een toeslag van € ",null,null,null,null,{"$f":"M51","v":95}]
[null,"(btw incl.) aangerekend."]
[null,"9) De klant is verantwoordelijk voor de goede orde in en rond de feestzaal. Schade veroorzaakt door een der "]
[null,"aanwezigen kan verhaald worden op deze persoon maar als deze om gelijk welke reden de schade niet kan "]
[null,"vergoeden (vb: te weinig financiële middelen of de veroorzaker is onbekend) kan deze schade eveneens "]
[null,"ondeelbaar worden verhaald op de klant , zijnde de persoon die het feest heeft besteld. VB: per gebroken tulpje "]
[null,"aan de lusters van de grote zaal wordt 25 euro aangerekend."]

{"sheet":"Reservatievoorstel","index":3,"n_rows":50,"n_cols":33,"rows_kept":50,"cut":false,"hidden":false,"merged":[[36,0,37,8],[40,0,42,8],[2,14,3,14],[2,15,3,15],[14,9,14,17],[16,9,16,17],[23,14,23,17],[25,9,26,17],[2,16,3,16],[2,17,3,17],[9,12,9,13],[12,9,12,11],[12,12,12,16],[38,0,39,8]]}
[null,null,"Reservatievoorstel",null,null,null,null,null,null,null,"Uitsplitsing per BTW tarief.",null,null,null,null,"Totaalprijs per vol:",{"$f":"D9","v":47.8}]
["Naam Klant:",null,{"$f":"'walking dinner'!F86","v":0},null,"Katelijnenhof",null,null,null,null,null,null,null,null,null,null,{"$f":"IF(Q2>0,\"Prijs drankforfait na de maaltijd, volledig aan 21% BTW:\",\"\")","v":""},{"$f":"'walking dinner'!D70","v":0}]
["Adres:",null,{"$f":"'walking dinner'!F87","v":0},null,"Heirweg 172",null,null,null,null,null,null,null,"Menu",null,"Dep. B",{"$f":"IF(Q2>0,\"Drank- forfait:\",\"\")","v":""},"Totaal aan 21%","Dep. A"]
["Stad:",null,{"$f":"'walking dinner'!F88","v":0},null,"8800 Roeselare",null,null,null,null,null,"aantal","totaal:","deel 12%","deel21%"]
["Tel nr:",null,{"$f":"'walking dinner'!F89","v":0},null,"info@katelijnenhof.be",null,null,"aankomst om:",{"$f":"'walking dinner'!F84","v":0},"Vol",{"$f":"C9","v":0},{"$f":"Q1-Q2","v":47.8},{"$f":"ROUND(L5*0.65,2)","v":31.07},{"$f":"L5-M5","v":16.729999999999997},{"$f":"K5*M5","v":0},{"$f":"Q2","v":0},{"$f":"N5+P5","v":16.729999999999997},{"$f":"K5*Q5","v":0}]
[{"$f":"'walking dinner'!J101","v":"reden feest:"},{"$f":"'walking dinner'!K101","v":0},null,null,"Gsm 0475/618058",null,null,"aan tafel om:",{"$f":"'walking dinner'!F85","v":0},"JR 1/2",{"$f":"C10","v":0},{"$f":"L5/2","v":23.9},{"$f":"ROUND(L6*0.65,2)","v":15.54},{"$f":"L6-M6","v":8.36},{"$f":"K6*M6","v":0},{"$f":"Q2/2","v":0},{"$f":"N6+P6","v":8.36},{"$f":"K6*Q6","v":0}]
["Datum activiteit:",null,{"$f":"'walking dinner'!F77","v":"00:00:00"},null,"Fax 051/747875",null,null,null,null,"JR 1/3",{"$f":"C11","v":0},{"$f":"L5/3","v":15.933333333333332},{"$f":"ROUND(L7*0.65,2)","v":10.36},5.5733333333333324,0,{"$f":"Q2/3","v":0},{"$f":"N7+P7","v":5.5733333333333324},0]
[null,null,"Totaal aantal personen:",{"$f":"C9+C12+C11+C10","v":0},"email klant:",null,{"$f":"'walking dinner'!F90","v":0},null,null,"JR gratis",{"$f":"C12","v":0},{"$f":"E12","v":0},{"$f":"ROUND(L8*0.65,2)","v":0},0,0,null,{"$f":"N8+P8","v":0},0]
[null,"volwassenen:",{"$f":"'walking dinner'!F79","v":0},{"$f":"'walking dinner'!D7","v":47.8},null,null,null,"raming totaal 1:",{"$f":"C9*D9+C10*D10+C11*D11+C12*D12","v":0},null,null,"Voorschot reeds betaald:",null,null,{"$f":"ROUND(M9/98*100,2)","v":0},{"$f":"IF(Q9>0,\"Huur zaal/muziekinstallatie: \",\"\")","v":""},{"$f":"I11","v":0}]
[null,"JR 1/2 (6 t.e.m. 11) :",{"$f":"'walking dinner'!F80","v":0},{"$f":"'walking dinner'!J7","v":23.9},null,null,null,"ander rekenblad:",{"$f":"'walking dinner'!F92","v":0},null,null,"Gestort / betaald op:"]
[null,"JR 1/3 (3 t.e.m. 5) :",{"$f":"'walking dinner'!F81","v":0},{"$f":"'walking dinner'!H7","v":15.933333333333332},null,null,null,"huur zaal:",{"$f":"IF(D8=0,0,IF((I9+I10)<'Algemene verkoopsvoorwaarden'!J44,('Algemene verkoopsvoorwaarden'!J44-Reservatievoorstel!I9-Reservatievoorstel!I10),0))","v":0},null,null,{"$f":"IF(O9>0,\"Voorschot uitgesplitst:\",\"\")","v":""},{"$f":"IF(O9>0,\" € \"&ROUND(O9*0.65,2) & \" x 12% => Dep. B  en € \" &ROUND(O9*0.35,2) & \" x 21% => Dep. A.\",\"\")","v":""}]
[null,"JR gratis (0 t.e.m. 2) :",{"$f":"'walking dinner'!F82","v":0},{"$f":"'walking dinner'!F7","v":"0,00"},null,null,null,"raming algemeen totaal:",{"$f":"I11+I10+I9","v":0},null,null,null,"Voorschot wordt gesplitst over:",{"$f":"IF(O9>0,ROUNDUP((O9+1)/L5,0),0)","v":0}," volwassenen"]
[null,null,null,null,null,null,null,"raming te betalen indien contante betaling  (max € 3000 cash):",{"$f":"'walking dinner'!G98","v":0},"Input GKS:",null,null,{"$f":"IF(O9*0.65 >N12*M5,\"ONMOGELIJK U bekomt negatieve waarden.\",\"\")","v":""}]
["Voorkeur tafelschikking:",null,null,{"$f":"'walking dinner'!K100","v":"geen voorkeur"},null,null,null,null,null,{"$f":"N12","v":0},"vol","x",{"$f":"IFERROR(ROUND(M5-O9*0.65/N12,2),\"\")","v":""},0.12,{"$f":"IFERROR(J14*M14,\"\")","v":""},"Dep. B","Verwerking voorschot"]
[{"$f":"'walking dinner'!H78","v":""},null,null,null,null,null,null,null,{"$f":"'walking dinner'!B22","v":"De gast die een extra aperitief bestelt betaalt deze zelf"},{"$f":"IFERROR( \" Er wordt € \" & ROUND(O9*0.65/N12,2) & \" minder geboekt bij \" & N12 & \" personen omdat dit reeds als voorschot werd geboekt.\",\"\")","v":""}]
[{"$f":"'walking dinner'!H79","v":""},null,null,null,null,null,null,null,{"$f":"IF(O9>0,\" Uw voorschot van € \" & O9 & \" wordt nog in mindering gebracht\",\"\")","v":""},{"$f":"N12","v":0},"vol","x",{"$f":"IFERROR(ROUND(Q5-O9*0.35/N12,2),\"\")","v":""},0.21,{"$f":"IFERROR(J16*M16,\"\")","v":""},"Dep. A","Verwerking voorschot"]
[{"$f":"'walking dinner'!H80","v":"Eerste buffet = 2 soorten soep"},null,null,null,null,null,null,null,null,{"$f":"IFERROR( \" Er wordt € \" & ROUND(O9*0.35/N12,2) & \" minder geboekt bij \" & N12 & \" personen omdat dit reeds als voorschot werd geboekt.\",\"\")","v":""}]
[{"$f":"'walking dinner'!H81","v":""},null,null,null,null,null,null,null,null,{"$f":"K5-J14","v":0},{"$f":"K14","v":"vol"},"x",{"$f":"M5","v":31.07},0.12,{"$f":"J18*M18","v":0},"Dep. B"]
[{"$f":"'walking dinner'!H82","v":""},null,null,null,null,null,null,null,null,{"$f":"K5-J16","v":0},{"$f":"K16","v":"vol"},"x",{"$f":"Q5","v":16.729999999999997},0.21,0,"Dep. A"]
[null,null,null,null,null,null,null,null,null,{"$f":"K6","v":0},{"$f":"J6","v":"JR 1/2"},"x",{"$f":"M6","v":15.54},0.12,0,"Dep. B"]
[{"$f":"'walking dinner'!H83","v":"Tweede buffet = broodjes, beleg en mini koud buffet."},null,null,null,null,null,null,null,null,{"$f":"K6","v":0},{"$f":"J6","v":"JR 1/2"},"x",{"$f":"Q6","v":8.36},0.21,0,"Dep. A"]
[{"$f":"IF('walking dinner'!B37=matrixen!$N$96,\"\",'walking dinner'!B37)","v":""},null,null,null,null,{"$f":"IF('walking dinner'!B43=matrixen!$N$96,\"\",'walking dinner'!B43)","v":""},null,null,null,{"$f":"K7","v":0},{"$f":"J7","v":"JR 1/3"},"x",{"$f":"M7","v":10.36},0.12,0,"Dep. B"]
[{"$f":"IF('walking dinner'!B38=matrixen!$N$96,\"\",'walking dinner'!B38)","v":""},null,null,null,null,{"$f":"IF('walking dinner'!B44=matrixen!$N$96,\"\",'walking dinner'!B44)","v":""},null,null,null,{"$f":"K7","v":0},{"$f":"J7","v":"JR 1/3"},"x",{"$f":"Q7","v":5.5733333333333324},0.21,0,"Dep. A",null,null,null,null,null,null,null,null,null,null,null,null,null,null,null,null,{"$f":"matrixen!B97","v":0}]
[{"$f":"IF('walking dinner'!B39=matrixen!$N$96,\"\",'walking dinner'!B39)","v":""},null,null,null,null,{"$f":"IF('walking dinner'!B45=matrixen!$N$96,\"\",'walking dinner'!B45)","v":""},null,null,null,{"$f":"IF(L24>0,\"1\",0)","v":0},{"$f":"IF(L24>0,\"x\",\"\")","v":""},{"$f":"Q9","v":0},{"$f":"IF(L24>0,\"21%\",\"\")","v":""},{"$f":"IF(L24>0,\"Dep. A\",\"\")","v":""},{"$f":"P9","v":""},null,null,null,null,null,null,null,null,null,null,null,null,null,null,null,null,null,{"$f":"matrixen!E97","v":0}]
[{"$f":"IF('walking dinner'!B40=matrixen!$N$96,\"\",'walking dinner'!B40)","v":""},null,null,null,null,{"$f":"IF('walking dinner'!B46=matrixen!$N$96,\"\",'walking dinner'!B46)","v":""},null,null,null,null,"Totale boekwaarde:",{"$f":"SUM(O14:O23)+L24+O9+I10","v":0},{"$f":"IF(SUM(O14:O23)+L24+O9+I10 <>I12,\" Er is iets fout met de splitsingstabel\",\"\")","v":""},null,null,null,null,null,null,null,null,null,null,null,null,null,null,null,null,null,null,null,{"$f":"matrixen!H97","v":0}]
[{"$f":"IF('walking dinner'!B41=matrixen!$N$96,\"\",'walking dinner'!B41)","v":""},null,null,null,null,{"$f":"IF('walking dinner'!B47=matrixen!$N$96,\"\",'walking dinner'!B47)","v":""},null,null,null,{"$f":"\"De eventuele korting contant van 2 %, in het huidig voorstel is dit € \" &ROUND( I12-I13,2) & \" is nog niet in bovenstaande splitsing verwerkt.\"","v":"De eventuele korting contant van 2 %, in het huidig voorstel is dit € 0 is nog niet in bovenstaande splitsing verwerkt."}]
[{"$f":"IF('walking dinner'!B42=matrixen!$N$96,\"\",'walking dinner'!B42)","v":""},null,null,null,null,{"$f":"IF('walking dinner'!B48=matrixen!$N$96,\"\",'walking dinner'!B48)","v":""}]
[]
[{"$f":"'walking dinner'!H91","v":"Koude aardappelen"},null,null,null,null,null,null,null,null,null,{"$f":"IF(K31<>\"\",\"Detail van het aperitief:\",\"\")","v":""}]
[]
[{"$f":"'walking dinner'!H92","v":"Groenten en sausen "},null,null,null,null,null,null,null,null,null,{"$f":"IF(A15=\"Maak in dit vak uw keuze voor het aperitief\",\"\",A15)","v":""}]
[{"$f":"'walking dinner'!H93","v":"Huiswijn, bieren en frisdranken als forfait"},null,null,null,null,null,null,null,null,null,{"$f":"'walking dinner'!H13","v":0}]
[{"$f":"'walking dinner'!H97","v":0},null,null,null,null,null,null,null,null,null,{"$f":"'walking dinner'!H14","v":0}]
[{"$f":"'walking dinner'!H94","v":"Vierde buffet; mini dessertbuffet met volgende samenstelling:"},null,null,null,null,null,null,null,null,null,{"$f":"'walking dinner'!H15","v":0}]
[{"$f":"'walking dinner'!H95","v":"Chocolademousse, fruitsla, speculoostaart, javanais en miserable."},null,null,null,null,null,null,null,null,null,{"$f":"'walking dinner'!H16","v":0}]
[{"$f":"'walking dinner'!H96","v":"Ook koffie is inbegrepen."},null,null,null,null,null,null,"Factuur: ",{"$f":"'walking dinner'!M104","v":"nee"},null,{"$f":"'walking dinner'!H17","v":0}]
[{"$f":"'walking dinner'!H98 &\" \" & 'walking dinner'!B70","v":"Drankverbruik na 5 uren: Alle drank na de maaltijd komt op één rekening en wordt door de organisator van het feest betaald"},null,null,null,null,null,null,null,null,null,{"$f":"'walking dinner'!H18","v":0}]
[null,null,null,null,null,null,null,null,null,null,{"$f":"'walking dinner'!H19","v":0}]
[{"$f":"'walking dinner'!K103","v":"Betaling op de dag zelf (cash of bancontact), u bekomt 2% korting op het totaal"},null,null,null,null,null,null,null,null,null,{"$f":"'walking dinner'!H20","v":0}]
[null,null,null,null,null,null,null,null,null,null,{"$f":"'walking dinner'!H21","v":0}]
[{"$f":"\"Opmerking: \" &'walking dinner'!K102","v":"Opmerking: "},null,null,null,null,null,null,null,null,null,{"$f":"'walking dinner'!H22","v":0}]
[null,null,null,null,null,null,null,null,null,null,{"$f":"'walking dinner'!H23","v":0}]
[null,null,null,null,null,null,null,null,null,null,{"$f":"'walking dinner'!H24","v":0}]
[null,"Vegetariërs: ",{"$f":"'walking dinner'!G70","v":"nee"},null,null,"Feest met discobar: ",{"$f":"'walking dinner'!G72","v":"nee"},null,"Halal bereidingen: ",null,{"$f":"'walking dinner'!H25","v":0}]
[null,"Speciale dieten: ",{"$f":"'walking dinner'!I70","v":"nee"},null,null,{"$f":"'walking dinner'!H72","v":"Allergenen: "},{"$f":"'walking dinner'!I72","v":"nee"},null,{"$f":"'walking dinner'!K70","v":"nee"},null,{"$f":"'walking dinner'!H26","v":0}]
["Het juiste aantal EN de gewenste tafelschikking moet ons meegedeeld worden ten laatste op: ",null,null,null,null,null,null,null,{"$f":"C7-9","v":-9}]
["Wijzigingen na deze datum van aantal en/of tafelschikking hebben prijsherzieningen tot gevolg!"]
["Dit aantal geldt als minimum voor facturatie. Verdere verkoopsvoorwaarden op een ander werkblad. "]
["Vergeet ze niet te lezen.",null,null,null,null,null,null,"Gaat u akkoord met de algemene verkoopsvoorwaarden?",{"$f":"'walking dinner'!K99","v":"ja"}]
["Handtekening der beide partijen voor akkoord:",null,null,null,"De klant",null,null,"Het Katelijnenhof"]